bitfinex-derivatives/quotes_BTCF0:USTF0_20251208
["timestamp","ask_amount","ask_price","bid_price","bid_amount"]
[1765224317890,0.05674,90273.0,90272.0,0.00112239]
[1765224318098,0.05674,90273.0,90272.0,0.01219909]
[1765224318689,0.02802,90273.0,90272.0,0.07485909]
[1765224318894,0.07383,90280.0,90279.0,0.02993]
[1765224319094,0.05674,90280.0,90279.0,0.0707358]
[1765224320297,0.05774,90280.0,90279.0,0.0707358]
[1765224320813,0.05674,90273.0,90272.0,0.00012239]
[1765224321305,0.0678174,90266.0,90265.0,0.00110786]
[1765224321499,0.05674,90245.0,90244.0,0.04080386]
[1765224321690,0.05674,90245.0,90244.0,0.02993]
[1765224321898,0.05674,90245.0,90244.0,0.05966]
[1765224322200,0.05686239,90245.0,90244.0,0.05966]
[1765224323605,0.05686239,90245.0,90244.0,0.06566]
[1765224323901,0.05686239,90245.0,90244.0,0.07166]
[1765224324109,0.02814239,90245.0,90244.0,0.07166]
[1765224324609,0.05955269,90296.0,90253.0,0.05966]
[1765224324908,0.05674,90281.0,90280.0,0.0110756]
[1765224325408,0.05674,90281.0,90280.0,0.0410056]
[1765224325593,0.05674,90281.0,90280.0,0.0110756]
[1765224325797,0.0678167,90272.0,90271.0,0.00016615]
[1765224326299,0.06463716,90272.0,90271.0,0.00016615]
[1765224326700,0.05674,90272.0,90271.0,0.00016615]
[1765224327404,0.05774,90272.0,90271.0,0.00216615]
[1765224330691,0.05774,90272.0,90271.0,0.01324295]
[1765224333306,0.05774,90272.0,90271.0,0.07290295]
[1765224333503,0.05673415,90272.0,90271.0,0.07290295]
[1765224334398,0.05673415,90272.0,90271.0,0.04317295]
[1765224334706,0.05673415,90272.0,90271.0,0.01324295]
[1765224334905,0.05673415,90272.0,90271.0,0.07290295]
[1765224335307,0.02801415,90272.0,90271.0,0.07290295]
[1765224335608,0.001,90272.0,90271.0,0.07290295]
[1765224336305,0.05774,90272.0,90271.0,0.00216615]
[1765224336499,0.05674,90249.0,90247.0,0.03946787]
[1765224336702,0.05674,90248.0,90247.0,0.05966]
[1765224337500,0.05674,90248.0,90247.0,0.06466]
[1765224338095,0.05674,90248.0,90247.0,0.06966]
[1765224339201,0.05674,90248.0,90247.0,0.06466]
[1765224339407,0.00016615,90257.0,90256.0,0.0707387]
[1765224339700,0.0110759,90279.0,90273.0,0.0110765]
[1765224339906,0.0110754,90283.0,90277.0,0.01699]
[1765224340104,0.0678154,90283.0,90282.0,0.02993]
[1765224340306,0.05674,90283.0,90282.0,0.02993]
[1765224340502,0.05674,90283.0,90282.0,0.05966]
[1765224341099,0.06074,90283.0,90282.0,0.05966]
[1765224341709,0.06074,90283.0,90277.0,0.01699]
[1765224341710,0.05674,90278.0,90277.0,0.02993]
[1765224341909,0.05674,90274.0,90273.0,0.00016615]
[1765224342117,0.08039106,90274.0,90273.0,0.03009615]
[1765224342310,0.08039106,90274.0,90273.0,0.00016615]
[1765224343017,0.08039106,90274.0,90273.0,0.02929615]
[1765224343205,0.08239106,90274.0,90273.0,0.00016615]
[1765224343714,0.08239106,90274.0,90273.0,0.00116615]
[1765224345305,0.08239106,90274.0,90273.0,0.04137275]
[1765224345706,0.08239106,90274.0,90273.0,0.05985615]
[1765224346314,0.08239106,90274.0,90273.0,0.07093275]
[1765224348115,0.08239106,90274.0,90273.0,0.05985615]
[1765224349210,0.05367106,90274.0,90273.0,0.05985615]
[1765224349516,0.03002,90274.0,90273.0,0.05985615]
[1765224349717,0.002,90274.0,90273.0,0.05985615]
[1765224350114,0.00110755,90290.0,90273.0,0.05985615]
[1765224350115,0.00110755,90290.0,90289.0,0.0697646]
[1765224351507,0.06962205,90290.0,90289.0,0.05869]
[1765224351707,0.05744,90285.0,90284.0,0.05869]
[1765224352319,0.05744,90285.0,90284.0,0.02913]
[1765224352625,0.05744,90285.0,90284.0,0.05869]
[1765224353017,0.05844,90285.0,90284.0,0.05869]
[1765224353215,0.03051,90285.0,90284.0,0.05869]
[1765224353521,0.03151,90285.0,90284.0,0.05869]
[1765224354018,0.05854755,90290.0,90289.0,0.05869]
[1765224354519,0.05854755,90290.0,90289.0,0.02913]
[1765224355223,0.00110755,90290.0,90289.0,0.05869]
[1765224355524,0.00410755,90290.0,90289.0,0.05869]
[1765224356020,0.00016615,90292.0,90291.0,0.05869]
[1765224356522,0.29903528,90320.0,90287.0,0.0110747]
[1765224356523,0.05744,90314.0,90313.0,0.0110715]
[1765224356726,0.0810646,90314.0,90313.0,0.0110715]
[1765224357217,0.0810646,90314.0,90310.0,0.02913]
[1765224357218,0.068512,90311.0,90310.0,0.02913]
[1765224357723,0.05744,90309.0,90308.0,0.0110722]
[1765224358121,0.29920143,90320.0,90314.0,0.05869]
[1765224358122,0.05744,90315.0,90314.0,0.05869]
[1765224358419,0.00016615,90320.0,90319.0,0.0697609]
[1765224358611,0.02967615,90320.0,90319.0,0.0697609]
[1765224359923,0.03067615,90320.0,90319.0,0.0697609]
[1765224360119,0.03167615,90320.0,90319.0,0.0697609]
[1765224360423,0.05960615,90320.0,90319.0,0.02913]
[1765224360620,0.00216615,90320.0,90319.0,0.05834]
[1765224361012,0.00116615,90320.0,90319.0,0.05934]
[1765224361911,0.00016615,90320.0,90319.0,0.05934]
[1765224362109,0.00116615,90320.0,90319.0,0.05934]
[1765224363220,0.05942615,90320.0,90319.0,0.001]
[1765224363524,0.07576615,90320.0,90319.0,0.001]
[1765224364323,0.05942615,90320.0,90319.0,0.001]
[1765224364519,0.05942615,90320.0,90319.0,0.05866]
[1765224364924,0.00116615,90320.0,90319.0,0.05866]
[1765224367930,0.0110695,90331.0,90330.0,0.01607]
[1765224368125,0.0693295,90331.0,90330.0,0.07373]
[1765224368428,0.0693295,90331.0,90330.0,0.05766]
[1765224368829,0.0693303,90324.0,90323.0,0.05766]
[1765224369226,0.05826,90324.0,90323.0,0.05766]
[1765224369529,0.004,90331.0,90330.0,0.0395196]
[1765224369735,0.004,90331.0,90330.0,0.0862896]
[1765224371836,0.0110693,90333.0,90332.0,0.05766]
[1765224372234,0.0404793,90333.0,90332.0,0.05766]
[1765224372439,0.02941,90333.0,90332.0,0.05766]
[1765224373342,0.03341,90333.0,90332.0,0.05766]
[1765224373726,0.06309,90333.0,90332.0,0.05766]
[1765224373927,0.06309,90333.0,90332.0,0.02845]
[1765224374128,0.06309,90333.0,90332.0,0.05694]
[1765224374328,0.004,90333.0,90332.0,0.05694]
[1765224374629,0.00016605,90338.0,90337.0,0.0683687]
[1765224374832,0.0391666,90355.0,90354.0,0.0683666]
[1765224375033,0.0281,90355.0,90354.0,0.0683666]
[1765224375734,0.30055528,90370.0,90354.0,0.0683666]
[1765224375735,0.0110656,90363.0,90362.0,0.0110655]
[1765224375933,0.0110656,90363.0,90362.0,0.0683655]
[1765224375934,0.0281,90363.0,90362.0,0.0683655]
[1765224376142,0.0391655,90363.0,90362.0,0.0683655]
[1765224376938,0.0461655,90363.0,90362.0,0.0683655]
[1765224377339,0.007,90363.0,90362.0,0.0683655]
[1765224377540,0.001,90363.0,90362.0,0.0693655]
[1765224378442,0.02826605,90364.0,90363.0,0.0573]
[1765224379131,0.0688455,90363.0,90362.0,0.003]
[1765224379537,0.0688455,90363.0,90362.0,0.001]
[1765224379740,0.0281,90353.0,90352.0,0.0683668]
[1765224380140,0.011066,90359.0,90358.0,0.0573]
[1765224380446,0.068846,90359.0,90358.0,0.0573]
[1765224382143,0.068846,90359.0,90358.0,0.0593]
[1765224382543,0.039166,90359.0,90358.0,0.0593]
[1765224382840,0.00016605,90364.0,90358.0,0.0593]
[1765224382841,0.00016605,90364.0,90363.0,0.0683655]
[1765224384943,0.00016605,90364.0,90363.0,0.0693655]
[1765224385336,0.00016605,90364.0,90363.0,0.0703655]
[1765224385537,0.00110663,90365.0,90363.0,0.0703655]
[1765224385737,0.0110639,90377.0,90368.0,0.0683649]
[1765224386441,0.0110641,90375.0,90368.0,0.0683649]
[1765224386746,0.00016605,90378.0,90368.0,0.0683649]
[1765224389838,0.0110645,90372.0,90368.0,0.0683649]
[1765224390238,0.0110641,90375.0,90368.0,0.0683649]
[1765224390640,0.00016605,90378.0,90368.0,0.0683649]
[1765224391239,0.0110639,90377.0,90368.0,0.0683649]
[1765224391441,0.0110641,90375.0,90368.0,0.0683649]
[1765224392841,0.00016605,90378.0,90377.0,0.0683638]
[1765224393045,0.00110632,90390.0,90389.0,0.0683624]
[1765224394340,0.00710632,90390.0,90389.0,0.0683624]
[1765224395138,0.00011008,90399.0,90398.0,0.0683613]
[1765224397339,0.00511008,90399.0,90398.0,0.0683613]
[1765224398347,0.0003,90405.0,90404.0,0.0683605]
[1765224398549,0.00110602,90415.0,90404.0,0.0683605]
[1765224398550,0.00110602,90415.0,90414.0,0.0849493]
[1765224398744,0.0110578,90426.0,90425.0,0.0683579]
[1765224399342,0.0110578,90426.0,90425.0,0.0573]
[1765224399539,0.0110578,90426.0,90425.0,0.06859865]
[1765224400253,0.0110578,90426.0,90425.0,0.07159865]
[1765224400640,0.0688378,90426.0,90425.0,0.07159865]
[1765224401137,0.0688378,90426.0,90425.0,0.0603]
[1765224401942,0.4688378,90426.0,90425.0,0.003]
[1765224402137,0.49207718,90426.0,90425.0,0.003]
[1765224403252,0.49207718,90426.0,90416.0,0.00016595]
[1765224403253,0.0671589,90417.0,90416.0,0.00016595]
[1765224403843,0.0671589,90417.0,90416.0,0.02846595]
[1765224404155,0.0110586,90420.0,90419.0,0.05638]
[1765224404447,0.0681786,90420.0,90419.0,0.05638]
[1765224404841,0.0401786,90420.0,90419.0,0.05638]
[1765224405042,0.0681786,90420.0,90419.0,0.05638]
[1765224405348,0.02912,90420.0,90419.0,0.0674387]
[1765224405651,0.0681786,90420.0,90419.0,0.0674387]
[1765224405943,0.0681786,90420.0,90419.0,0.05638]
[1765224406340,0.040178,90425.0,90424.0,0.05638]
[1765224407436,0.068178,90425.0,90424.0,0.05638]
[1765224407744,0.068178,90425.0,90424.0,0.0293]
[1765224407945,0.068178,90425.0,90424.0,0.001]
[1765224408147,0.09143673,90425.0,90424.0,0.001]
[1765224409553,0.0681789,90417.0,90416.0,0.02846595]
[1765224409754,0.0681789,90417.0,90416.0,0.05654595]
[1765224410641,0.0681789,90417.0,90416.0,0.06254595]
[1765224411253,0.0681789,90417.0,90416.0,0.06154595]
[1765224411653,0.05712,90417.0,90416.0,0.06154595]
[1765224411850,0.00110571,90440.0,90423.0,0.01656]
[1765224412054,0.02912,90433.0,90432.0,0.083997]
[1765224412252,0.06928181,90440.0,90439.0,0.05638]
[1765224412457,0.09255504,90440.0,90439.0,0.05638]
[1765224413463,0.0681766,90436.0,90435.0,0.0393566]
[1765224413649,0.09144983,90436.0,90435.0,0.0674366]
[1765224414244,0.09144983,90436.0,90435.0,0.0283]
[1765224414651,0.09144983,90436.0,90429.0,0.0110574]
[1765224414852,0.0681773,90430.0,90429.0,0.0674374]
[1765224415052,0.09145053,90430.0,90429.0,0.0674374]
[1765224415252,0.05712,90427.0,90426.0,0.0110578]
[1765224415450,0.05712,90427.0,90426.0,0.0674378]
[1765224416560,0.05712,90427.0,90426.0,0.0714378]
[1765224417852,0.08041315,90427.0,90426.0,0.0714378]
[1765224418263,0.08041991,90427.0,90426.0,0.0714378]
[1765224418562,0.02329991,90427.0,90426.0,0.0714378]
[1765224420163,0.0681766,90436.0,90435.0,0.0674367]
[1765224420352,0.09149535,90436.0,90435.0,0.0674367]
[1765224420652,0.02331875,90436.0,90435.0,0.05638]
[1765224420851,0.05150875,90436.0,90435.0,0.05638]
[1765224421059,0.08045875,90436.0,90435.0,0.05638]
[1765224422063,0.08145875,90436.0,90435.0,0.05638]
[1765224422462,0.08145875,90436.0,90435.0,0.05738]
[1765224423363,0.02431875,90436.0,90435.0,0.05738]
[1765224424965,0.001,90436.0,90435.0,0.05738]
[1765224427166,0.00110571,90440.0,90439.0,0.0667462]
[1765224427368,0.0681947,90452.0,90451.0,0.0667448]
[1765224427567,0.09154829,90452.0,90451.0,0.0667448]
[1765224428565,0.08649359,90452.0,90451.0,0.0667448]
[1765224428958,0.09049359,90452.0,90451.0,0.0667448]
[1765224429366,0.03335359,90452.0,90451.0,0.0667448]
[1765224430266,0.09049359,90452.0,90451.0,0.0667448]
[1765224430573,0.05714,90443.0,90442.0,0.06691175]
[1765224430755,0.08049359,90443.0,90442.0,0.00016585]
[1765224431560,0.08149359,90443.0,90442.0,0.00016585]
[1765224431761,0.05814,90443.0,90442.0,0.00016585]
[1765224432156,0.05814,90443.0,90442.0,0.06578175]
[1765224433066,0.001,90443.0,90442.0,0.06578175]
[1765224435461,0.03038,90443.0,90442.0,0.06578175]
[1765224435662,0.05898,90443.0,90442.0,0.00016585]
[1765224436262,0.05898,90443.0,90442.0,0.05612585]
[1765224436574,0.05898,90443.0,90442.0,0.00016585]
[1765224437267,0.05898,90443.0,90442.0,0.02867585]
[1765224437475,0.001,90443.0,90442.0,0.05612585]
[1765224438273,0.11753269,90462.0,90461.0,0.05596]
[1765224438459,0.05955269,90469.0,90464.0,0.05596]
[1765224438664,0.0110517,90477.0,90464.0,0.0670132]
[1765224438868,0.0110512,90480.0,90464.0,0.0670132]
[1765224439668,0.00810541,90465.0,90464.0,0.07783988]
[1765224439970,0.01310541,90465.0,90464.0,0.07783988]
[1765224440561,0.28915206,90490.0,90464.0,0.07783988]
[1765224440562,0.069031,90482.0,90481.0,0.0670111]
[1765224441873,0.076031,90482.0,90481.0,0.0670111]
[1765224442075,0.076031,90482.0,90481.0,0.05596]
[1765224442271,0.076031,90482.0,90481.0,0.02851]
[1765224442676,0.05798,90481.0,90480.0,0.0110511]
[1765224442978,0.05798,90478.0,90477.0,0.0110516]
[1765224443276,0.05798,90478.0,90477.0,0.0395616]
[1765224443674,0.05798,90478.0,90477.0,0.0670116]
[1765224444773,0.06298,90478.0,90477.0,0.0670116]
[1765224445668,0.03438,90478.0,90477.0,0.0833516]
[1765224445878,0.005,90478.0,90477.0,0.0833516]
[1765224446575,0.03438,90478.0,90477.0,0.0833516]
[1765224447265,0.06298,90478.0,90477.0,0.0853516]
[1765224447471,0.05798,90478.0,90477.0,0.0853516]
[1765224447671,0.05998,90478.0,90477.0,0.0853516]
[1765224448073,0.002,90478.0,90477.0,0.0853516]
[1765224448875,0.05998,90478.0,90477.0,0.0853516]
[1765224449078,0.05998,90478.0,90477.0,0.0690116]
[1765224449578,0.002,90478.0,90477.0,0.0690116]
[1765224449876,0.0011051,90490.0,90489.0,0.0670101]
[1765224450375,1e-08,90490.0,90489.0,0.0670101]
[1765224450576,0.0590848,90515.0,90514.0,0.05596]
[1765224451173,0.05798,90506.0,90505.0,0.05612574]
[1765224451377,0.0690281,90506.0,90505.0,0.05612574]
[1765224451680,0.0690281,90506.0,90505.0,0.02867574]
[1765224452066,0.0690281,90506.0,90505.0,0.05612574]
[1765224452682,0.0690281,90506.0,90505.0,0.00016574]
[1765224453369,0.0730281,90506.0,90505.0,0.00016574]
[1765224454283,0.06198,90506.0,90505.0,0.00016574]
[1765224455765,0.06198,90506.0,90484.0,0.0110507]
[1765224455967,0.05798,90489.0,90488.0,0.05596]
[1765224457283,0.05798,90489.0,90488.0,0.06096]
[1765224458676,0.05798,90489.0,90488.0,0.03351]
[1765224459280,0.05798,90489.0,90488.0,0.06096]
[1765224462080,0.05798,90489.0,90488.0,0.005]
[1765224462979,0.05798,90489.0,90488.0,0.06339]
[1765224466990,0.05798,90489.0,90488.0,0.005]
[1765224467286,0.05798,90489.0,90488.0,0.06442]
[1765224467681,0.0665012,90480.0,90479.0,0.00016574]
[1765224467881,0.0665026,90469.0,90468.0,0.00012366]
[1765224468287,0.08990261,90469.0,90468.0,0.00012366]
[1765224469394,0.08990261,90469.0,90468.0,0.00812366]
[1765224469889,0.08990261,90469.0,90468.0,0.00712366]
[1765224470882,0.08990261,90469.0,90468.0,0.00812366]
[1765224471890,0.08990261,90469.0,90468.0,0.03766366]
[1765224472090,0.08990261,90469.0,90468.0,0.06754366]
[1765224472495,0.08990261,90469.0,90468.0,0.06054366]
[1765224472799,0.08990261,90469.0,90468.0,0.06454366]
[1765224473091,0.05157001,90469.0,90468.0,0.06054366]
[1765224473391,0.07885001,90469.0,90468.0,0.06554366]
[1765224473694,0.07885001,90469.0,90468.0,0.06054366]
[1765224473894,0.07885001,90469.0,90468.0,0.06554366]
[1765224474493,0.05545,90469.0,90468.0,0.06554366]
[1765224474794,0.05545,90469.0,90468.0,0.06654366]
[1765224475194,0.05545,90469.0,90468.0,0.06854366]
[1765224475391,0.2882127,90478.0,90472.0,0.07699]
[1765224475392,0.05545,90473.0,90472.0,0.07699]
[1765224475692,0.02817,90473.0,90472.0,0.07699]
[1765224476294,0.05545,90473.0,90472.0,0.07699]
[1765224476884,0.05545,90473.0,90472.0,0.08199]
[1765224477297,0.05545,90473.0,90472.0,0.08299]
[1765224477992,0.05545,90473.0,90472.0,0.08199]
[1765224478193,0.05545,90473.0,90472.0,0.08399]
[1765224478405,0.05545,90473.0,90472.0,0.08499]
[1765224479100,0.05545,90473.0,90472.0,0.03754]
[1765224479399,0.05545,90473.0,90472.0,0.03554]
[1765224479601,0.05545,90473.0,90472.0,0.03654]
[1765224479901,0.05545,90473.0,90472.0,0.06642]
[1765224480199,0.05545,90473.0,90472.0,0.06542]
[1765224480401,0.05545,90473.0,90472.0,0.06642]
[1765224481396,0.05545,90473.0,90472.0,0.08292]
[1765224482704,0.05545,90473.0,90468.0,0.00012366]
[1765224483006,0.00016574,90478.0,90449.0,0.05749]
[1765224483007,0.067945,90450.0,90449.0,0.05749]
[1765224483390,0.067946,90441.0,90440.0,0.07609571]
[1765224483702,0.067946,90441.0,90440.0,0.05859571]
[1765224483894,0.06805929,90441.0,90440.0,0.05859571]
[1765224484597,0.02995329,90441.0,90440.0,0.07609571]
[1765224484795,0.05700329,90441.0,90440.0,0.07609571]
[1765224485803,0.05700329,90441.0,90440.0,0.08209571]
[1765224485994,0.05700329,90441.0,90440.0,0.08309571]
[1765224486300,0.05700329,90441.0,90440.0,0.08009571]
[1765224487101,0.05700329,90441.0,90440.0,0.08209571]
[1765224487799,0.05700329,90441.0,90440.0,0.06459571]
[1765224487999,0.05700329,90441.0,90440.0,0.00710571]
[1765224488201,0.05700329,90441.0,90440.0,0.03305571]
[1765224488401,0.05700329,90441.0,90440.0,0.03705571]
[1765224488699,0.05700329,90441.0,90440.0,0.06259571]
[1765224489504,0.05700329,90441.0,90440.0,0.06059571]
[1765224489802,0.05700329,90441.0,90440.0,0.05959571]
[1765224490009,0.05700329,90441.0,90440.0,0.06259571]
[1765224490201,0.00011329,90441.0,90440.0,0.08009571]
[1765224490396,0.00011329,90441.0,90440.0,0.08109571]
[1765224490902,0.00016584,90450.0,90440.0,0.08109571]
[1765224490903,0.00016584,90450.0,90449.0,0.068545]
[1765224491294,0.29909946,90470.0,90466.0,0.0110528]
[1765224491603,0.05689,90470.0,90469.0,0.0685426]
[1765224491905,0.05689,90470.0,90469.0,0.05749]
[1765224492703,0.06289,90470.0,90469.0,0.05749]
[1765224493306,0.06389,90470.0,90469.0,0.05749]
[1765224494206,0.06589,90470.0,90469.0,0.02995]
[1765224494405,0.08929806,90470.0,90469.0,0.05917]
[1765224494602,0.05789,90470.0,90469.0,0.05917]
[1765224494810,0.05989,90470.0,90469.0,0.05917]
[1765224495309,0.08330603,90470.0,90469.0,0.05917]
[1765224495509,0.05989,90470.0,90469.0,0.05917]
[1765224495706,0.003,90470.0,90469.0,0.05917]
[1765224497302,0.0329,90470.0,90469.0,0.05917]
[1765224497997,0.06159,90470.0,90469.0,0.05917]
[1765224500821,0.0850211,90470.0,90469.0,0.05917]
[1765224501520,0.0696435,90461.0,90460.0,0.02876584]
[1765224501904,0.0696435,90461.0,90460.0,0.00016584]
[1765224502723,0.09307784,90461.0,90460.0,0.02876584]
[1765224503110,0.09307784,90461.0,90460.0,0.05798584]
[1765224508918,0.09307784,90461.0,90460.0,0.02876584]
[1765224509224,0.10945784,90461.0,90460.0,0.00016584]
[1765224509422,0.0696459,90442.0,90441.0,0.07532]
[1765224509718,0.05859,90441.0,90440.0,0.00110571]
[1765224509923,0.08203876,90441.0,90440.0,0.00110571]
[1765224511120,0.08203876,90441.0,90440.0,0.02970571]
[1765224511319,0.08203876,90441.0,90440.0,0.03270571]
[1765224511512,0.08203876,90441.0,90440.0,0.07876571]
[1765224511716,0.05859,90441.0,90440.0,0.07876571]
[1765224512918,0.0299,90441.0,90440.0,0.07876571]
[1765224513222,0.28795931,90450.0,90449.0,0.05782]
[1765224513418,0.05859,90447.0,90446.0,0.0396553]
[1765224513618,0.08202551,90447.0,90446.0,0.0688753]
[1765224514219,0.08202551,90447.0,90446.0,0.05782]
[1765224515625,0.069646,90441.0,90440.0,0.00110571]
[1765224516325,0.0930815,90441.0,90440.0,0.00110571]
[1765224517029,0.0930815,90441.0,90440.0,0.00310571]
[1765224517229,0.0930815,90441.0,90440.0,0.00410571]
[1765224518231,0.0930815,90441.0,90431.0,0.00016584]
[1765224518533,0.05859,90432.0,90431.0,0.05798584]
[1765224519329,0.07497,90432.0,90431.0,0.00016584]
[1765224519533,0.07497,90432.0,90431.0,0.00216584]
[1765224519832,0.07497,90432.0,90431.0,0.03476584]
[1765224520034,0.05859,90432.0,90431.0,0.07504304]
[1765224520232,0.0696464,90438.0,90437.0,0.05782]
[1765224520423,0.09306932,90438.0,90437.0,0.05782]
[1765224520824,0.0696464,90438.0,90437.0,0.05782]
[1765224521226,0.05859,90438.0,90437.0,0.05782]
[1765224522238,0.0683358,90443.0,90442.0,0.05781]
[1765224522937,0.29753877,90447.0,90446.0,0.05781]
[1765224523231,0.0683353,90447.0,90446.0,0.05781]
[1765224523445,0.05728,90447.0,90446.0,0.05781]
[1765224524034,0.02913,90447.0,90446.0,0.05781]
[1765224524228,0.02913,90447.0,90446.0,0.06081]
[1765224524539,0.02929584,90450.0,90449.0,0.05781]
[1765224524929,0.05744584,90450.0,90449.0,0.05781]
[1765224526523,0.05744584,90450.0,90449.0,0.06081]
[1765224527229,0.02929584,90450.0,90449.0,0.06081]
[1765224527430,0.02929584,90450.0,90449.0,0.05881]
[1765224527637,0.01638,90472.0,90449.0,0.05881]
[1765224527638,0.05955269,90479.0,90478.0,0.05781]
[1765224527941,0.05955269,90479.0,90472.0,0.01508]
[1765224527942,0.05728,90473.0,90472.0,0.0839422]
[1765224528542,0.0011051,90490.0,90489.0,0.05781]
[1765224528838,0.0583851,90490.0,90489.0,0.05781]
[1765224529045,0.08190308,90490.0,90489.0,0.05781]
[1765224529233,0.09295308,90490.0,90489.0,0.05781]
[1765224529743,0.08590308,90490.0,90489.0,0.05781]
[1765224530146,0.08590308,90490.0,90489.0,0.0688601]
[1765224530345,0.0623851,90490.0,90489.0,0.0688601]
[1765224531141,0.0623851,90490.0,90489.0,0.05781]
[1765224532148,0.0623851,90490.0,90489.0,0.0688601]
[1765224532644,0.0623851,90490.0,90489.0,0.05781]
[1765224533148,0.0734351,90490.0,90489.0,0.05781]
[1765224533443,0.0734351,90490.0,90480.0,0.05716584]
[1765224533444,0.05814,90481.0,90480.0,0.05716584]
[1765224534242,0.0051051,90490.0,90489.0,0.0680501]
[1765224534646,0.00016584,90499.0,90498.0,0.068049]
[1765224535937,0.00516584,90499.0,90498.0,0.068049]
[1765224536548,0.00716584,90499.0,90498.0,0.057]
[1765224540145,0.07635474,90499.0,90498.0,0.057]
[1765224540345,0.06530584,90499.0,90498.0,0.057]
[1765224540643,0.0691901,90489.0,90488.0,0.057]
[1765224540944,0.0691901,90489.0,90486.0,0.01754]
[1765224540945,0.00716584,90499.0,90498.0,0.057]
[1765224541850,0.00016584,90499.0,90498.0,0.057]
[1765224542548,0.00316584,90499.0,90498.0,0.057]
[1765224542745,0.00516584,90499.0,90498.0,0.057]
[1765224542950,0.0110469,90516.0,90514.0,0.0680471]
[1765224543249,0.0302648,90515.0,90514.0,0.057]
[1765224543652,0.0592448,90515.0,90514.0,0.057]
[1765224544152,0.0652448,90515.0,90514.0,0.057]
[1765224544354,0.0732448,90515.0,90514.0,0.057]
[1765224545247,0.0732448,90515.0,90514.0,0.0680471]
[1765224545248,0.0151048,90515.0,90514.0,0.0680471]
[1765224545548,0.0732448,90515.0,90514.0,0.07935272]
[1765224546449,0.0732448,90515.0,90514.0,0.057]
[1765224547555,0.0732448,90515.0,90505.0,0.05780574]
[1765224547556,0.0677681,90506.0,90505.0,0.05780574]
[1765224547947,0.0677681,90506.0,90505.0,0.03008574]
[1765224548256,0.0677681,90506.0,90505.0,0.05780574]
[1765224548552,0.0677681,90506.0,90505.0,0.03008574]
[1765224548854,0.0707681,90506.0,90505.0,0.03008574]
[1765224549052,0.0757681,90506.0,90505.0,0.00016574]
[1765224549250,0.0757681,90506.0,90505.0,0.05780574]
[1765224549840,0.008,90506.0,90505.0,0.05780574]
[1765224551055,0.0011048,90515.0,90514.0,0.05764]
[1765224551248,0.0011048,90515.0,90514.0,0.0686871]
[1765224553246,0.0031048,90515.0,90514.0,0.0686871]
[1765224556247,0.0728018,90515.0,90514.0,0.05764]
[1765224556752,0.0031048,90515.0,90514.0,0.05764]
[1765224556948,0.0031048,90515.0,90514.0,0.0686871]
[1765224558252,0.00016484,90524.0,90523.0,0.05881]
[1765224558647,0.00016484,90524.0,90523.0,0.069856]
[1765224559659,0.07768449,90540.0,90539.0,0.05881]
[1765224559861,0.0696953,90530.0,90529.0,0.0698552]
[1765224560157,0.05865,90530.0,90529.0,0.0698552]
[1765224560969,0.05865,90530.0,90529.0,0.0718552]
[1765224561957,0.05865,90530.0,90529.0,0.06081]
[1765224562554,0.08203009,90530.0,90529.0,0.002]
[1765224564648,0.08203009,90530.0,90520.0,0.00016574]
[1765224564649,0.0696962,90521.0,90520.0,0.00016574]
[1765224564857,0.09307629,90521.0,90520.0,0.00016574]
[1765224565060,0.09307629,90521.0,90499.0,0.0698589]
[1765224565061,0.07579,90500.0,90499.0,0.0698589]
[1765224565560,0.05865,90500.0,90499.0,0.0698589]
[1765224565866,0.0696984,90504.0,90503.0,0.02896]
[1765224566359,0.0696984,90504.0,90487.0,0.08889663]
[1765224566360,0.02879,90496.0,90495.0,0.0110493]
[1765224566561,0.02879,90496.0,90495.0,0.0698593]
[1765224566865,0.05865,90496.0,90495.0,0.0698593]
[1765224567454,0.0696993,90496.0,90495.0,0.0698594]
[1765224567653,0.05865,90495.0,90494.0,0.01121524]
[1765224568061,0.05865,90495.0,90494.0,0.07002524]
[1765224568367,0.02879,90495.0,90494.0,0.07002524]
[1765224569256,0.05865,90500.0,90499.0,0.0698589]
[1765224569459,0.05220299,90500.0,90499.0,0.0698589]
[1765224569959,0.02341299,90500.0,90499.0,0.0698589]
[1765224570264,0.05865,90511.0,90510.0,0.0698575]
[1765224570468,0.0820604,90511.0,90510.0,0.0698575]
[1765224570966,0.07658,90500.0,90499.0,0.008]
[1765224571159,0.05865,90495.0,90494.0,0.00316574]
[1765224571359,0.0696994,90495.0,90494.0,0.03212574]
[1765224571663,0.05865,90495.0,90494.0,0.03212574]
[1765224571858,0.05865,90495.0,90494.0,0.05897574]
[1765224572059,0.06965,90495.0,90494.0,0.05897574]
[1765224572568,0.03979,90495.0,90494.0,0.06097574]
[1765224573264,0.011,90495.0,90494.0,0.05897574]
[1765224573464,0.00016574,90513.0,90512.0,0.0698573]
[1765224574662,0.00016574,90513.0,90512.0,0.0758573]
[1765224575064,0.05881574,90513.0,90512.0,0.0758573]
[1765224575670,0.05881574,90513.0,90512.0,0.0778573]
[1765224576168,0.02895574,90513.0,90512.0,0.0778573]
[1765224576361,0.00016574,90513.0,90512.0,0.0778573]
[1765224578259,0.05881574,90513.0,90512.0,0.0778573]
[1765224578462,0.05881574,90513.0,90512.0,0.03696]
[1765224578858,0.05881574,90513.0,90512.0,0.008]
[1765224579166,0.09322357,90513.0,90512.0,0.008]
[1765224579962,0.09322357,90513.0,90494.0,0.01121524]
[1765224579963,0.011049,90498.0,90496.0,0.0110492]
[1765224580168,0.05865,90497.0,90496.0,0.0110492]
[1765224582375,0.05865,90497.0,90496.0,0.0180492]
[1765224582670,0.05865,90497.0,90496.0,0.007]
[1765224582871,0.05865,90497.0,90496.0,0.002]
[1765224583076,0.05637,90495.0,90494.0,0.00016574]
[1765224583766,0.0674194,90495.0,90494.0,0.00016574]
[1765224584566,0.05637,90495.0,90494.0,0.00016574]
[1765224585173,0.05637,90495.0,90494.0,0.02848574]
[1765224585479,0.05637,90495.0,90494.0,0.03048574]
[1765224585679,0.05637,90495.0,90494.0,0.00516574]
[1765224587670,0.05637,90495.0,90494.0,0.06327574]
[1765224588071,0.0674185,90503.0,90502.0,0.0691584]
[1765224588271,0.09086553,90503.0,90502.0,0.0691584]
[1765224588473,0.0674185,90503.0,90502.0,0.05811]
[1765224588674,0.0674185,90503.0,90502.0,0.02832]
[1765224589183,0.09086857,90503.0,90502.0,0.02932]
[1765224589383,0.09086857,90503.0,90502.0,0.001]